bitfinex/quotes_ETHUSD_20220120
["timestamp","ask_amount","ask_price","bid_price","bid_amount"]
[1642662707292,5.80393586,3140.0,3139.9,6.92e-05]
[1642662707491,9.10772625,3140.0,3139.9,6.92e-05]
[1642662707692,10.10772625,3140.0,3139.9,6.92e-05]
[1642662708293,10.26654625,3140.0,3139.9,6.92e-05]
[1642662710439,10.27408827,3140.0,3139.0,0.01]
[1642662710639,3.83789039,3139.9,3139.0,0.01]
[1642662710842,1.41040259,3139.7,3139.1,0.00454739]
[1642662711042,3.64015691,3139.6,3139.1,0.00454739]
[1642662711542,3.51275691,3139.6,3139.1,0.00454739]
[1642662714120,0.466,3139.6,3139.3,0.0298493]
[1642662714620,0.466,3139.6,3139.4,0.00284212]
[1642662715417,0.00754022,3139.6,3139.4,0.00284212]
[1642662717320,0.00754022,3139.6,3138.8,0.00269142]
[1642662717519,0.47354022,3139.6,3138.8,0.00269142]
[1642662717719,0.47354022,3139.6,3138.9,0.00284212]
[1642662720457,0.47354022,3139.6,3139.1,0.0123272]
[1642662720458,0.46926458,3139.6,3139.1,0.0123272]
[1642662720859,0.46926458,3139.6,3139.2,0.00113685]
[1642662722298,0.1274,3139.5,3139.2,0.00113685]
[1642662722499,1.46700073,3139.3,3139.2,0.00113685]
[1642662722698,20.23582073,3139.3,3139.2,0.00113685]
[1642662722897,20.70182073,3139.3,3139.2,0.00113685]
[1642662723102,24.41310759,3139.3,3139.2,0.00113685]
[1642662723305,25.56150759,3139.3,3139.2,0.00113685]
[1642662723702,26.85917873,3139.3,3139.2,0.00113685]
[1642662725546,26.85917873,3139.3,3139.2,0.01344201]
[1642662725749,26.85917873,3139.3,3139.2,3.21344201]
[1642662725946,25.71077873,3139.3,3139.2,3.21344201]
[1642662729295,25.7098303,3139.3,3139.2,3.21344201]
[1642662730196,25.8372303,3139.3,3139.2,3.21344201]
[1642662730998,25.8372303,3139.3,3139.2,1.93459295]
[1642662731402,25.7098303,3139.3,3139.2,1.93459295]
[1642662733448,25.7098303,3139.3,3138.6,0.01]
[1642662733449,18.61,3139.0,3138.6,0.01]
[1642662733651,7.31467917,3138.7,3138.6,0.01]
[1642662733848,7.31467917,3138.7,3138.0,0.01]
[1642662733849,5.49687,3138.6,3138.0,0.01]
[1642662734050,25.59418252,3138.5,3138.0,0.01]
[1642662734248,25.59418252,3138.5,3138.1,0.00625266]
[1642662734249,3.01128686,3138.4,3138.1,0.00625266]
[1642662734448,4.1179823,3138.3,3138.1,0.00625266]
[1642662734650,2.3427843,3138.2,3138.1,0.00625266]
[1642662735048,2.6427843,3138.2,3138.1,0.00625266]
[1642662735251,0.3,3138.2,3138.1,0.00625266]
[1642662735549,1.92289314,3138.3,3138.1,0.00625266]
[1642662739396,2.19760211,3138.2,3138.1,0.00625266]
[1642662739598,1.92289314,3138.3,3138.1,0.00625266]
[1642662740944,1.62289314,3138.3,3138.1,0.00625266]
[1642662744498,4.7,3138.2,3138.1,0.00625266]
[1642662744697,4.7,3138.2,3137.7,0.1274]
[1642662744698,18.61,3138.0,3137.7,0.1274]
[1642662744898,4.7,3138.1,3137.7,0.1274]
[1642662744899,0.466,3137.9,3137.7,0.1274]
[1642662745097,0.4274,3138.1,3137.8,0.00170527]
[1642662745098,4.13847332,3138.1,3137.8,0.00170527]
[1642662745298,0.466,3138.0,3137.8,0.00170527]
[1642662745900,0.00272336,3138.3,3137.8,0.00170527]
[1642662746098,0.00272336,3138.3,3137.8,1.0975]
[1642662746500,0.00272336,3138.3,3137.9,0.00113684]
[1642662751703,0.00272336,3138.3,3138.1,1.54036419]
[1642662751903,0.00272336,3138.3,3138.2,2.71294946]
[1642662752202,0.00386021,3138.3,3138.2,2.84034946]
[1642662752401,0.00386021,3138.3,3138.2,3.99944946]
[1642662752607,0.00386021,3138.3,3138.2,7.84944946]
[1642662754006,0.00386021,3138.3,3138.2,3.99944946]
[1642662754704,0.00386021,3138.3,3138.2,1.2865]
[1642662755352,0.00386021,3138.3,3138.2,3.93886219]
[1642662755551,0.00386021,3138.3,3138.2,6.28886219]
[1642662757051,4.33889504,3139.1,3138.4,2.3889653]
[1642662757251,4.33889504,3139.1,3138.5,3.66715354]
[1642662757452,0.00397897,3139.0,3138.5,4.76085354]
[1642662757652,0.00397897,3139.0,3138.6,2.16279071]
[1642662757853,4.33889504,3139.1,3138.9,1.21461872]
[1642662758055,4.33889504,3139.1,3138.9,1.51461872]
[1642662758252,0.00397897,3139.0,3138.9,0.3]
[1642662758656,0.00397897,3139.0,3138.7,0.1274]
[1642662758854,0.00397897,3139.0,3138.7,0.2865]
[1642662759122,0.00341054,3138.9,3138.7,1.2865]
[1642662759316,0.00341054,3138.9,3138.7,1.5865]
[1642662759614,0.00284212,3138.8,3138.7,1.5865]
[1642662760415,0.00284212,3138.8,3138.7,2.82922759]
[1642662760615,0.00284212,3138.8,3138.7,5.49106533]
[1642662760815,0.00284212,3138.8,3138.7,2.82922759]
[1642662761015,0.00284212,3138.8,3138.7,5.50649859]
[1642662761618,0.00284212,3138.8,3138.7,5.37909859]
[1642662761819,0.00284212,3138.8,3138.7,2.70182759]
[1642662763443,0.00284212,3138.8,3138.7,1.24272759]
[1642662763651,0.00191796,3138.8,3138.7,1.24272759]
[1642662764250,0.00191796,3138.8,3138.7,1.40182759]
[1642662764652,0.00191796,3138.8,3138.7,2.00182759]
[1642662764951,0.00191796,3138.8,3138.7,2.70182759]
[1642662765151,0.00191796,3138.8,3138.7,2.54272759]
[1642662766597,0.00191796,3138.8,3138.7,2.70182759]
[1642662768202,0.00191796,3138.8,3138.7,1.54272759]
[1642662768402,0.00191796,3138.8,3138.7,2.70182759]
[1642662771245,0.00191796,3138.8,3138.7,5.36759455]
[1642662771447,0.00191796,3138.8,3138.7,2.70182759]
[1642662772858,0.00191796,3138.8,3138.7,3.00182759]
[1642662773956,0.00191796,3138.8,3138.7,2.70182759]
[1642662774396,0.00191796,3138.8,3138.7,3.00182759]
[1642662776601,0.00191796,3138.8,3138.7,2.54272759]
[1642662776798,0.00191796,3138.8,3138.7,3.00182759]
[1642662777867,0.00191796,3138.8,3138.7,5.77240091]
[1642662778060,4.33889504,3139.1,3138.8,4.7]
[1642662778256,4.33889504,3139.1,3138.9,3.23657332]
[1642662778456,1.57113785,3140.4,3139.0,7.47057332]
[1642662778656,2.71053993,3140.3,3139.1,1.0]
[1642662778856,4.28556454,3140.2,3139.9,1.52370651]
[1642662779056,0.00909477,3140.4,3140.0,1.20787346]
[1642662779057,2.71053993,3140.1,3140.0,1.20787346]
[1642662779258,0.0073895,3140.1,3140.0,1.20787346]
[1642662779456,3.44084222,3140.1,3140.0,2.20787346]
[1642662781060,0.73030229,3140.1,3140.0,2.20787346]
[1642662782300,0.73030229,3140.1,3140.0,2.36697346]
[1642662782500,0.73030229,3140.1,3140.0,5.56697346]
[1642662785367,0.73030229,3140.1,3140.0,5.40787346]
[1642662785559,0.73030229,3140.1,3140.0,5.42116357]
[1642662785759,0.73030229,3140.1,3140.0,5.58026357]
[1642662788765,0.73030229,3140.1,3140.0,5.42116357]
[1642662788961,0.73030229,3140.1,3140.0,4.21329011]
[1642662790602,0.73030229,3140.1,3140.0,4.20698784]
[1642662791003,3.44097312,3140.1,3140.0,4.20698784]
[1642662791403,0.73030229,3140.1,3140.0,4.20698784]
[1642662791602,3.44097829,3140.1,3140.0,4.20698784]
[1642662792203,0.73030229,3140.1,3140.0,4.20698784]
[1642662792705,3.44094163,3140.1,3140.0,4.20698784]
[1642662793144,3.44094176,3140.1,3140.0,4.20698784]
[1642662793345,3.44094176,3140.1,3140.0,3.20698784]
[1642662794750,3.44094176,3140.1,3140.0,3.50698784]
[1642662797001,0.73030229,3140.1,3140.0,4.09338784]
[1642662797300,0.0073895,3140.1,3140.0,4.79338784]
[1642662797802,0.0073895,3140.1,3140.0,3.63428784]
[1642662798000,2.71789331,3140.1,3140.0,3.63428784]
[1642662798401,3.44073206,3140.1,3140.0,4.50698784]
[1642662798601,3.44073206,3140.1,3140.0,4.63428784]
[1642662798602,0.73022825,3140.1,3140.0,4.63428784]
[1642662799000,0.72934348,3140.1,3140.0,4.63428784]
[1642662799605,0.72934348,3140.1,3140.0,4.79338784]
[1642662800647,0.72934348,3140.1,3140.0,4.66608784]
[1642662800944,0.00650473,3140.1,3140.0,3.66608784]
[1642662801146,2.71703482,3140.1,3140.0,3.50698784]
[1642662801747,2.71703482,3140.1,3140.0,3.20698784]
[1642662802146,3.43975849,3140.1,3140.0,3.20698784]
[1642662802547,4.90113531,3140.1,3140.0,3.20698784]
[1642662803548,3.43975849,3140.1,3140.0,3.20698784]
[1642662805103,3.43975849,3140.1,3140.0,3.50698784]
[1642662809955,3.43975849,3140.1,3140.0,3.20698784]
[1642662810955,3.43975849,3140.1,3140.0,3.50698784]
[1642662812810,3.43975849,3140.1,3140.0,3.20698784]
[1642662813813,3.43975849,3140.1,3140.0,3.50698784]
[1642662820906,3.43975849,3140.1,3140.0,4.50698784]
[1642662827416,3.43975849,3140.1,3140.0,3.50698784]
[1642662827616,3.43975849,3140.1,3140.0,3.20698784]
[1642662829318,3.43325376,3140.1,3140.0,3.20698784]
[1642662829918,1.73863301,3140.6,3140.1,4.75]
[1642662830218,0.00764158,3140.3,3140.2,1.3]
[1642662830654,0.00764158,3140.3,3140.1,1.0]
[1642662830854,0.00764158,3140.3,3140.2,0.1273]
[1642662831056,1.32451944,3140.7,3140.2,2.67074623]
[1642662831255,3.0295,3140.8,3140.2,2.97074623]
[1642662831559,0.00934685,3140.6,3140.3,1.0]
[1642662831957,0.00877843,3140.5,3140.3,1.0]
[1642662832256,0.00821,3140.4,3140.3,1.0]
[1642662832457,0.00821,3140.4,3140.3,1.1591]
[1642662833257,0.00821,3140.4,3140.3,1.9550468]
[1642662833458,0.00821,3140.4,3140.3,2.2550468]
[1642662833657,0.00821,3140.4,3140.3,2.3823468]
[1642662835510,0.00821,3140.4,3140.3,2.23635886]
[1642662836310,0.00821,3140.4,3140.3,5.06010709]
[1642662836511,0.00821,3140.4,3140.3,2.39540206]
[1642662838351,0.00656454,3140.4,3140.3,2.39540206]
[1642662838548,0.00656454,3140.4,3140.3,9.2499802]
[1642662838748,0.00656454,3140.4,3140.3,6.44540206]
[1642662839152,1.78031684,3141.4,3140.4,4.75]
[1642662839355,0.1273,3141.5,3140.9,0.79575]
[1642662839554,0.00397897,3141.1,3141.0,0.3]
[1642662839752,0.00397897,3141.1,3141.0,4.3273]
[1642662840052,0.00738951,3141.7,3141.0,5.3273]
[1642662840252,0.00738951,3141.7,3141.6,1.37958863]
[1642662840453,1.61133301,3141.8,3141.6,1.67958863]
[1642662840655,1.61133301,3141.9,3141.6,1.67958863]
[1642662842009,1.61133301,3141.9,3141.6,0.3]
[1642662842206,1.61133301,3141.9,3141.5,1.41459082]
[1642662842404,1.61133301,3141.9,3141.6,2.96367814]
[1642662842608,0.13639478,3142.0,3141.7,1.1273]
[1642662843006,0.00852636,3141.9,3141.8,0.3]
[1642662843206,0.00852636,3141.9,3141.8,5.1273]
[1642662843406,0.00852636,3141.9,3141.8,5.4057]
[1642662843606,0.00852636,3141.9,3141.8,6.4057]
[1642662843806,0.00852636,3141.9,3141.8,1.8648]
[1642662844814,0.00852636,3141.9,3141.8,7.0338]
[1642662845214,0.00852636,3141.9,3141.8,10.13663784]
[1642662845662,1.22313633,3142.9,3142.2,0.79543]
[1642662845862,1.22313633,3142.9,3142.3,2.70054937]
[1642662846061,0.00511581,3142.8,3142.3,2.70054937]
[1642662846561,0.00454738,3142.7,3142.5,1.2231587]
[1642662846760,0.00454738,3142.7,3142.5,1.0954283]
[1642662846961,0.00397896,3142.6,3142.5,0.7954283]
[1642662847166,0.00397896,3142.6,3142.5,1.0954283]
[1642662847963,0.00397896,3142.6,3142.5,0.3]
[1642662848462,0.00397896,3142.6,3142.2,2.44511039]
[1642662848663,1.23287745,3142.4,3142.2,2.44511039]
[1642662848863,0.00341054,3142.5,3142.2,2.44511039]
[1642662849109,0.00227369,3142.3,3142.2,2.44511039]
[1642662849303,0.00284211,3142.4,3142.2,2.44511039]
[1642662849503,0.00227369,3142.3,3142.2,2.44511039]
[1642662850505,0.00227369,3142.3,3142.2,5.11380079]
[1642662851906,0.00227369,3142.3,3142.2,2.44511039]
[1642662852706,0.00227369,3142.3,3142.2,5.64511039]
[1642662855256,0.00227369,3142.3,3142.2,8.35923307]
[1642662855655,0.00227369,3142.3,3142.2,8.37329979]
[1642662857402,0.00227369,3142.3,3142.2,5.65917711]
[1642662858604,0.00227369,3142.3,3142.2,8.3407312]
[1642662859711,0.00227369,3142.3,3142.2,8.4679312]
[1642662860551,0.00227369,3142.3,3142.2,8.6270312]
[1642662860754,0.00227369,3142.3,3142.2,8.4998312]
[1642662862554,0.00227369,3142.3,3142.2,5.81827711]
[1642662862759,0.00227369,3142.3,3142.2,8.57949281]
[1642662863056,0.00227369,3142.3,3142.2,5.94547711]
[1642662863256,0.00227369,3142.3,3142.2,8.61127996]
[1642662863457,0.00227369,3142.3,3142.2,8.61146219]
[1642662863757,0.00227369,3142.3,3142.2,5.94547711]
[1642662864409,0.00227369,3142.3,3142.2,8.61517542]
[1642662864606,0.00227369,3142.3,3142.2,5.94547711]
[1642662865007,0.00227369,3142.3,3142.2,3.34126672]
[1642662865209,3.95227369,3142.3,3142.2,3.34126672]
[1642662865608,6.66134859,3142.3,3142.2,3.34126672]
[1642662866010,2.71134859,3142.3,3142.2,3.34126672]
[1642662866409,2.71134859,3142.3,3142.2,3.51406672]
[1642662866410,0.00227369,3142.3,3142.2,3.51406672]
[1642662866609,0.00227369,3142.3,3142.2,3.21406672]
[1642662867853,0.00227369,3142.3,3142.2,3.46406672]
[1642662869358,2.71131081,3142.3,3142.2,3.46406672]
[1642662869561,0.00227369,3142.3,3142.2,3.46406672]
[1642662870459,0.00227369,3142.3,3142.2,3.46923009]
[1642662870662,0.00227369,3142.3,3142.2,4.46923009]
[1642662870959,0.00227369,3142.3,3142.2,4.92833009]
[1642662872404,0.00227369,3142.3,3142.2,4.62833009]
[1642662873009,0.00227369,3142.3,3142.2,4.92833009]
[1642662874309,2.71111548,3142.3,3142.2,4.62833009]
[1642662875109,2.71026693,3142.3,3142.2,4.62833009]
[1642662877358,2.71026693,3142.3,3142.2,4.92833009]
[1642662878358,2.71026693,3142.3,3142.2,5.72374009]
[1642662878559,2.71026693,3142.3,3142.2,4.92833009]
[1642662878758,2.71026693,3142.3,3142.2,4.62833009]
[1642662881814,2.71026693,3142.3,3142.2,4.46923009]
[1642662882213,2.71041744,3142.3,3142.2,4.46923009]
[1642662883353,2.71041744,3142.3,3142.2,3.46923009]
[1642662883554,2.36552519,3142.3,3142.2,3.46923009]
[1642662883956,1.6156852,3142.4,3142.2,3.46923009]
[1642662885158,1.61133301,3142.3,3142.2,3.46923009]
[1642662885357,1.61133301,3142.3,3142.2,3.62833009]
[1642662885557,0.00435219,3142.4,3142.2,3.46923009]
[1642662887010,1.6156852,3142.4,3142.2,3.46923009]
[1642662887211,0.00435219,3142.4,3142.2,3.46923009]
[1642662887411,1.6156852,3142.4,3142.2,3.46923009]
[1642662887814,0.00435219,3142.4,3142.2,4.26472369]
[1642662888213,0.00435219,3142.4,3142.3,1.0]
[1642662888813,0.00435219,3142.4,3142.3,1.1272]
[1642662889820,0.00435219,3142.4,3142.3,1.0]
[1642662890457,0.00435219,3142.4,3142.3,1.01011223]
[1642662894312,0.00435219,3142.4,3142.3,1.13731223]
[1642662895411,0.00435219,3142.4,3142.3,1.29641223]
[1642662895812,0.00435219,3142.4,3142.3,1.13731223]
[1642662898356,0.00435219,3142.4,3142.3,1.01011223]
[1642662899562,1.6156852,3142.4,3142.3,1.01011223]
[1642662899760,0.00435219,3142.4,3142.3,1.01011223]
[1642662900161,0.00435219,3142.4,3142.3,0.01011223]
[1642662900363,1.6156852,3142.4,3142.2,3.16921893]
[1642662900961,2.42294283,3142.3,3142.2,3.16921893]
[1642662901164,4.83994235,3142.3,3142.2,3.16921893]
[1642662901462,5.83994235,3142.3,3142.2,3.16921893]
[1642662901929,4.83994235,3142.3,3142.2,3.16921893]
[1642662903535,4.96714235,3142.3,3142.2,3.16921893]
[1642662903733,7.67633858,3142.3,3142.2,3.16921893]
[1642662905657,7.54913858,3142.3,3142.2,3.16921893]
[1642662905858,5.13213906,3142.3,3142.2,3.46921893]
[1642662906860,5.13213906,3142.3,3142.2,3.46832538]
[1642662907059,5.44600277,3142.3,3142.2,3.46832538]
[1642662907659,5.44600277,3142.3,3142.2,3.16921893]
[1642662908261,5.13213906,3142.3,3142.2,3.16921893]
[1642662908662,5.43213906,3142.3,3142.2,3.16921893]
[1642662909311,5.56001871,3142.3,3142.2,3.16921893]
[1642662909511,5.68789836,3142.3,3142.2,3.16921893]
[1642662909711,5.81509836,3142.3,3142.2,3.16921893]
[1642662910511,5.81944212,3142.3,3142.2,3.16921893]
[1642662910710,5.69224212,3142.3,3142.2,3.16921893]
[1642662911912,5.39224212,3142.3,3142.2,3.16921893]
[1642662912112,5.69224212,3142.3,3142.2,3.16921893]
[1642662912311,5.81944212,3142.3,3142.2,3.16921893]
[1642662912511,5.81944212,3142.3,3141.4,0.1272]
[1642662912512,13.19844732,3142.3,3141.4,0.1272]
[1642662912716,13.19844732,3142.3,3140.7,8.3683]
[1642662912717,1.59606994,3141.9,3140.8,0.1273]
[1642662912962,1.59606994,3141.9,3141.5,0.00454739]
[1642662912963,18.61,3141.7,3141.5,0.00454739]
[1642662913162,26.66249623,3141.6,3141.5,0.00454739]
[1642662913360,2.68483101,3141.5,3140.6,0.0096632]
[1642662913559,2.68483101,3141.5,3140.5,0.01023162]
[1642662913560,18.7373,3141.4,3140.5,0.01023162]
[1642662913759,18.61,3141.2,3140.5,0.01023162]
[1642662913962,9.69400103,3141.1,3140.5,0.01023162]
[1642662914162,2.70919623,3141.0,3140.5,0.01023162]
[1642662914364,0.1273,3140.9,3140.4,0.01080005]
[1642662914563,2.70919623,3140.8,3140.4,0.01080005]
[1642662914764,0.2557593,3140.6,3140.4,0.01080005]
[1642662914968,3.87684402,3140.5,3140.4,0.01080005]
[1642662915166,6.78236903,3140.5,3140.4,0.01080005]
[1642662915765,4.75,3140.4,3140.3,0.00010005]
[1642662915965,11.48801835,3140.4,3140.3,0.00010005]
[1642662916603,11.62621832,3140.4,3140.3,0.00010005]
[1642662916806,8.1906962,3140.4,3140.3,0.00010005]
[1642662917006,0.2406962,3140.4,3140.3,0.00010005]
[1642662917205,0.3232162,3140.4,3140.3,0.00010005]
[1642662917405,0.13819997,3140.4,3140.3,0.00010005]
[1642662917805,0.2557593,3140.6,3140.3,0.00010005]
[1642662918805,0.2557593,3140.6,3140.3,0.79609005]
[1642662919211,0.2557593,3140.6,3140.5,1.28462174]
[1642662919610,0.25689615,3140.6,3140.5,1.58462174]
[1642662920459,0.26377181,3140.6,3140.5,1.58462174]
[1642662921360,0.26377181,3140.6,3140.5,0.3]
[1642662921561,0.26377181,3140.6,3140.4,0.1273]
[1642662921761,0.13589216,3140.6,3140.3,1.09609005]
[1642662921963,0.00801251,3140.6,3140.3,1.09609005]
[1642662922162,0.2557593,3140.4,3140.3,1.09609005]
[1642662922561,0.2557593,3140.4,3140.3,2.43405874]
[1642662924410,0.2557593,3140.4,3140.3,0.30010005]
[1642662924611,0.2557593,3140.4,3140.3,0.00010005]
[1642662925410,0.2557593,3140.4,3140.3,0.01403319]
[1642662925814,0.2557593,3140.4,3140.3,3.21403319]
[1642662926010,0.2557593,3140.4,3140.3,3.51403319]
[1642662927111,0.2557593,3140.4,3140.3,0.31403319]
[1642662927311,0.2557593,3140.4,3140.3,0.01403319]
[1642662929774,1.60677746,3140.4,3140.3,0.01403319]
[1642662930474,7.72128178,3140.4,3140.3,0.01403319]
[1642662930679,18.61,3140.3,3139.0,7.4473]
[1642662930876,18.61,3140.3,3139.0,7.32]
[1642662930877,18.61,3140.1,3139.0,7.32]
[1642662931072,2.94592586,3140.0,3139.1,0.0073895]
[1642662931272,0.12787965,3139.6,3139.1,0.0073895]
[1642662931475,0.2557593,3139.6,3139.1,0.0073895]
[1642662932109,1.38254102,3139.2,3138.8,0.00909477]
[1642662934115,2.65643738,3139.1,3138.8,0.00909477]
[1642662934314,0.1274,3139.1,3138.8,0.00909477]
[1642662934613,0.1274,3139.1,3138.5,0.01080004]
[1642662934813,2.61583408,3139.1,3138.5,0.01080004]
[1642662935012,2.61761536,3139.1,3138.5,0.01080004]
[1642662935213,0.1274,3139.1,3138.5,0.01080004]
[1642662935506,0.00447141,3139.0,3138.5,0.01080004]
[1642662935904,0.00447141,3139.0,3138.5,0.31080004]
[1642662936304,0.00447141,3139.0,3138.6,0.01023162]
[1642662936505,0.12787965,3138.8,3138.6,0.01023162]
[1642662936705,0.2557593,3138.8,3138.6,0.01023162]
[1642662937006,0.2557593,3138.8,3138.5,0.01080004]
[1642662937604,0.2557593,3138.8,3138.5,0.31080004]
[1642662938004,0.2557593,3138.8,3138.6,0.01023162]
[1642662938208,0.3831593,3138.8,3138.6,0.01023162]
[1642662938403,0.3831593,3138.8,3138.5,0.01080004]
[1642662938404,2.8186039,3138.7,3138.5,0.01080004]
[1642662938606,0.1274,3138.6,3138.5,0.01080004]
[1642662939614,2.82416407,3138.6,3138.5,0.01080004]
[1642662939815,2.69676407,3138.6,3138.5,0.01080004]
[1642662940413,0.01235695,3138.6,3138.5,0.01080004]
[1642662941816,0.1402366,3138.6,3138.5,0.01080004]
[1642662942020,0.26811625,3138.6,3138.5,0.01080004]
[1642662943268,4.16811625,3138.6,3138.5,0.01080004]
[1642662943865,6.66232235,3138.6,3138.5,0.01080004]
[1642662944468,2.76232235,3138.6,3138.5,0.01080004]
[1642662944668,0.26811625,3138.6,3138.5,0.01080004]
[1642662948327,6.22771545,3138.6,3138.5,0.01080004]
[1642662948524,25.81646699,3138.6,3138.5,0.01080004]
[1642662948727,26.81646699,3138.6,3138.5,0.01080004]
[1642662948924,23.36,3138.5,3138.4,0.01]
[1642662949124,23.9534,3138.5,3138.4,0.01]
[1642662949327,25.63012799,3138.5,3138.4,0.01]
[1642662949624,26.88588729,3138.5,3138.4,0.01]
[1642662950027,26.88486762,3138.5,3138.4,0.01]
[1642662950474,26.88486762,3138.5,3137.3,0.01]
[1642662950475,18.61,3138.3,3137.3,0.01]
[1642662950676,4.12834197,3138.2,3137.3,0.01]
[1642662950875,4.12834197,3138.2,3137.4,0.00625266]
[1642662951679,1.19924145,3137.5,3137.4,0.00625266]
[1642662954912,3.96414061,3137.5,3137.4,0.00625266]
[1642662955317,1.45500075,3137.5,3137.4,0.00625266]
[1642662955513,1.46739075,3137.5,3137.4,0.00625266]
[1642662957866,4.11096263,3137.5,3137.4,0.00625266]
[1642662958669,1.46739075,3137.5,3137.4,0.00625266]
[1642662958967,1.46739075,3137.5,3137.4,0.0368615]
[1642662964016,1.46739075,3137.5,3137.4,0.00625266]
[1642662967167,0.2681493,3137.5,3137.4,0.00625266]
[1642662969237,0.2681493,3137.5,3137.4,0.13365266]
[1642662969435,0.26366301,3137.5,3137.4,0.13365266]
[1642662969637,0.2557593,3137.5,3137.4,5.18304455]
[1642662969837,3.6923,3139.0,3137.6,0.79654]
[1642662970036,3.6923,3139.0,3137.7,3.99965272]
[1642662970339,1.38632207,3138.5,3137.8,0.00397897]
[1642662970536,1.38632207,3138.5,3137.9,0.1274]
[1642662970939,1.38632207,3138.5,3138.0,0.00284212]
[1642662972036,1.38632207,3138.5,3138.0,0.30284212]
[1642662972339,1.38632207,3138.5,3138.1,0.0022737]
[1642662973460,1.38632207,3138.5,3138.2,0.79648]
[1642662973858,1.38632207,3138.5,3138.3,0.00113685]
[1642662974866,0.00113684,3138.7,3138.3,0.00113685]
[1642662975065,0.00113684,3138.7,3138.4,0.1274]
[1642662975465,0.00671627,3138.5,3138.4,1.13596036]
[1642662975666,0.00113684,3138.7,3138.4,4.08989382]
[1642662975867,0.00113684,3138.7,3138.5,2.86568431]
[1642662976064,0.00113684,3138.7,3138.6,4.4274]
[1642662976709,0.00113684,3138.7,3138.6,4.7274]
[1642662976909,0.00113684,3138.7,3138.6,1.4274]
[1642662977110,0.00113684,3138.7,3138.6,0.4274]
[1642662979818,0.00113684,3138.7,3138.6,0.1274]
[1642662980463,0.00113684,3138.7,3138.6,0.13761704]
[1642662980667,0.00113684,3138.7,3138.6,0.01021704]
[1642662982066,0.00113684,3138.7,3138.6,0.31021704]
[1642662988263,0.00027105,3138.7,3138.6,0.31021704]
[1642662994318,0.00027105,3138.7,3138.6,2.98037365]
[1642662994519,0.00027105,3138.7,3138.6,0.31021704]
[1642662994719,0.00027105,3138.7,3138.6,1.31021704]
[1642662994919,0.00027105,3138.7,3138.6,0.31021704]
[1642662995573,0.00027105,3138.7,3138.6,0.3155622]
[1642662996776,0.00027105,3138.7,3138.6,6.79788312]
[1642662996971,0.00027105,3138.7,3138.6,7.59068312]
[1642662997173,0.00027105,3138.7,3138.6,8.89068312]
[1642662997372,4.1741,3139.7,3138.9,0.79618]
[1642662997573,4.1741,3139.7,3139.3,1.32078246]
[1642662997774,0.00454739,3139.5,3139.3,1.32078246]
[1642662997974,0.00454739,3139.5,3139.1,1.0]
[1642662998176,0.00397897,3139.4,3139.2,0.3]
[1642662998572,0.01251478,3139.8,3139.0,0.4274]
[1642662998573,0.00341055,3139.3,3139.0,0.4274]
[1642662998772,0.00341055,3139.3,3139.0,2.82535618]
[1642662998973,2.71080971,3139.7,3139.1,0.79618]
[1642662998974,0.00284212,3139.2,3139.1,0.79618]
[1642662999215,0.00284212,3139.2,3139.1,1.4274]
[1642663000417,0.00284212,3139.2,3139.1,1.44331479]
[1642663000917,0.00284212,3139.2,3139.1,1.14331479]
[1642663001321,0.00284212,3139.2,3139.1,1.01591479]
[1642663001517,0.00284212,3139.2,3139.1,0.01591479]
[1642663001718,0.00284212,3139.2,3139.1,1.01591479]
[1642663001916,0.00284212,3139.2,3139.1,0.01591479]
[1642663005366,0.00284212,3139.2,3138.8,0.47501479]
[1642663005567,0.00284212,3139.2,3138.9,0.1274]
[1642663005766,0.0022737,3139.1,3138.9,0.1274]
[1642663006167,0.01251478,3139.8,3138.9,0.1274]
[1642663006168,0.00170528,3139.0,3138.9,0.1274]
[1642663006468,0.00170528,3139.0,3138.9,0.2865]
[1642663006916,2.71082835,3139.7,3139.0,4.75]
[1642663007117,11.43550786,3140.6,3139.3,0.7961]
[1642663007118,1.1963,3140.5,3139.3,0.7961]
[1642663007315,0.00397896,3139.7,3139.4,0.2864]
[1642663007516,0.00397896,3139.7,3139.4,0.8864]
[1642663007719,3.81916581,3140.6,3139.5,5.97119732]
[1642663007720,0.00341054,3139.6,3139.5,5.97119732]
[1642663007919,0.00341054,3139.6,3139.5,6.39859732]
[1642663008120,0.00341054,3139.6,3139.5,8.58816317]
[1642663008320,0.00341054,3139.6,3139.5,8.74726317]
[1642663008919,0.00341054,3139.6,3139.5,10.33941317]
[1642663009120,0.00341054,3139.6,3139.5,13.17060896]
[1642663010376,0.00341054,3139.6,3139.5,13.18643426]
[1642663010970,0.00341054,3139.6,3139.5,8.43643426]
[1642663013877,0.00341054,3139.6,3139.5,4.01308847]
[1642663014814,0.00341054,3139.6,3139.5,6.70725951]
[1642663017217,0.00341054,3139.6,3139.5,7.50324951]
[1642663017616,0.00341054,3139.6,3139.5,10.70324951]
[1642663019070,0.00341054,3139.6,3139.5,7.21308847]
[1642663027869,0.00341054,3139.6,3139.5,6.91308847]
[1642663028566,0.00341054,3139.6,3139.5,5.53279115]
[1642663029627,0.00341054,3139.6,3139.5,5.40539115]
[1642663030021,0.00249999,3139.6,3139.5,5.40539115]
[1642663031026,0.00249999,3139.6,3139.5,3.2158253]
[1642663031624,0.00249999,3139.6,3139.5,4.2158253]
[1642663031825,0.00249999,3139.6,3139.5,3.2158253]
[1642663032023,0.00249999,3139.6,3139.5,4.2158253]
[1642663033263,0.00249999,3139.6,3139.5,3.2158253]
[1642663033465,0.00249999,3139.6,3139.5,4.2158253]
[1642663037818,0.00249999,3139.6,3139.5,3.2158253]
[1642663038316,2.71331903,3139.6,3139.5,3.2158253]
[1642663038915,5.20679429,3139.6,3139.5,3.2158253]
[1642663039320,5.33419429,3139.6,3139.5,3.2158253]
[1642663039522,5.63419429,3139.6,3139.5,3.2158253]
[1642663039720,5.33419429,3139.6,3139.5,3.2158253]
[1642663039920,23.94419429,3139.6,3139.5,3.2158253]
[1642663040563,28.0110644,3139.6,3139.5,3.2158253]
[1642663042668,28.01102543,3139.6,3139.5,3.2158253]
[1642663043070,23.94419429,3139.6,3139.5,3.2158253]
[1642663043269,28.01107641,3139.6,3139.5,3.2158253]
[1642663043469,27.41107641,3139.6,3139.5,3.2158253]
[1642663043670,27.41107641,3139.6,3138.3,1.72018]
[1642663043671,4.75,3139.5,3138.3,1.72018]
[1642663043870,1.1699312,3139.8,3138.4,1.0]
[1642663043871,21.59664876,3139.4,3138.4,1.0]
[1642663044111,18.61,3139.4,3138.4,0.00682109]
[1642663044317,0.1274,3139.6,3138.4,0.00682109]
[1642663044514,18.7374,3139.6,3138.4,0.00682109]
[1642663044715,19.2034,3139.6,3138.4,0.00682109]
[1642663045515,19.2034,3139.6,3138.5,0.1274]
[1642663045915,19.2034,3139.6,3138.6,0.00568424]
[1642663047118,19.2034,3139.6,3138.5,0.00625266]
[1642663047319,0.5934,3139.6,3138.5,0.00625266]